Cogmind - Beta 14 @@@ ROGUE MODE // 2024.08.17 @ 16:09:08 Player: RedTheSorceress Result: Destroyed by as-57289 with Assembled Rifle Performance ------------- Evolutions (0) 0 Regions Visited (2) 400 Robots Destroyed (42) 210 Value Destroyed (655) 655 Prototype IDs (2) 40 Alien Tech Used (0) 0 Bonus (0) 0 TOTAL SCORE: 1305 Bonus ------- None Cogmind --------- Core Integrity 0/250 Matter 227/300 Energy 34/100 System Corruption 0% Temperature Cool (30) Movement Treading (312) Ox2 Location -10/Mines Parts ------- > --- POWER (1) -------- (None) > --- PROPULSION (2) --- Light Treads Advanced Treads > --- UTILITY (2) ------ Huge Storage Unit Light Armor Plating > --- WEAPON (2) ------- Medium Laser Assault Rifle > --- INVENTORY (25) --- Light Deuterium Engine Wheel Compact Wheel Medium Storage Unit Improved Sensor Array Targeting Computer Reaction Control System Hacking Suite Small Laser Small Laser Small Laser Small Laser EM Pulse Cannon Light Assault Rifle Light Assault Rifle Light Assault Rifle Light Assault Rifle Datajack Mining Laser Peak State ------------ > --- POWER ------------ Light Ion Engine > --- PROPULSION ------- Light Treads Light Treads > --- UTILITY ---------- Huge Storage Unit Insulated Plating > --- WEAPON ----------- Medium Laser Assault Rifle > --- INVENTORY -------- Light Deuterium Engine Advanced Treads Wheel Compact Wheel Medium Storage Unit Improved Sensor Array Targeting Computer Reaction Control System Light Armor Plating Hacking Suite Small Laser Small Laser Small Laser Small Laser EM Pulse Cannon Light Assault Rifle Light Assault Rifle Light Assault Rifle Light Assault Rifle Datajack Mining Laser [Rating: 12] Favorites ----------- Power Ion Engine Engine Ion Engine Propulsion Light Treads Treads Light Treads Leg Aluminum Leg Wheel Compact Wheel Utility Light Armor Plating Device Improved Terrain Scanner Storage Huge Storage Unit Protection Light Armor Plating Weapon Assault Rifle Energy Gun Particle Gun Ballistic Gun Assault Rifle Build | -11 -10 -10 ------- Run | Yrd Mat Min Slots Evolved . | . . . Power . | . . . Propulsion . | . . . Utility . | . . . Weapon . | . . . Parts Attached 20 | 3 8 9 Power 2 | . . 2 Engine 2 | . . 2 Core . | . . . Reactor . | . . . Propulsion 6 | 2 1 3 Treads 5 | 2 1 2 Leg . | . . . Wheel 1 | . . 1 Hover . | . . . Flight . | . . . Utility 7 | 1 4 2 Device 1 | 1 . . Storage 2 | . 2 . Processor . | . . . Hackware . | . . . Protection 4 | . 2 2 Artifact . | . . . Weapon 5 | . 3 2 Energy Gun 3 | . 2 1 Energy Cannon . | . . . Ballistic Gun 2 | . 1 1 Ballistic Cannon . | . . . Launcher . | . . . Special Weapon . | . . . Impact Weapon . | . . . Slashing Weapon . | . . . Piercing Weapon . | . . . Special Melee Weapon . | . . . Unidentified Prototypes . | . . . Parts Lost 7 | . . 7 Power 2 | . . 2 Propulsion 1 | . . 1 Utility 2 | . . 2 Weapon 2 | . . 2 Highest Loss Streak 7 | . . 7 To Critical Strikes . | . . . Average Slot Usage (%) 99 | . 99 99 Engine 13 | . 14 13 Treads 27 | . 27 27 Device 1 | . 2 . Storage 14 | . 14 14 Protection 12 | . 11 13 Energy Gun 13 | . 13 13 Ballistic Gun 14 | . 14 13 Peak Build Rating 12 | 9 10 12 Average Rating 9 | 6 9 10 On Entrance 8 | 6 9 10 Naked Turns . | . . . Heaviest Build 93 | 15 93 93 Greatest Support 40 | 40 40 40 Greatest Overweight (x) 5 | . 2 5 Average Overweight (x) 1 | . . 2 Largest Inventory Capacity 25 | 8 25 25 Average Capacity 18 | 8 15 25 Most Carried 25 | 8 25 25 Average Carried 17 | 7 13 24 Final Capacity 25 | 8 25 25 Final Carried 25 | 8 25 19 Class Distribution -------------------- 100% | Mutant Dominant Class ---------------- Mutant | -10/Materials Mutant | -10/Mines Resources | -11 -10 -10 ----------- Run | Yrd Mat Min Matter Collected 688 | 269 332 87 Remotely . | . . . Salvage Created 1204 | 161 852 191 Parts 68 | 8 48 12 Haulers Intercepted 2 | . 2 . Recyclers Shooed 1 | . 1 . Parts Field Recycled . | . . . Retrieved Matter . | . . . Parts Self-Destructed . | . . . Prevented . | . . . Kills | -11 -10 -10 ------- Run | Yrd Mat Min Combat Hostiles Destroyed 25 | . 14 11 Guns 25 | . 14 11 Classes Destroyed 10 | 2 7 1 Worker 2 | . 2 . Builder 1 | . 1 . Tunneler 5 | 5 . . Hauler 2 | . 2 . Recycler 5 | 1 4 . Operator 2 | . 2 . Watcher 3 | . 3 . Swarmer 12 | . 6 6 Grunt 10 | . 8 2 Assembled 3 | . . 3 Best Kill Streak 5 | 5 4 3 Combat Bots Only 3 | . 3 3 Max Kills in Single Turn 1 | 1 1 1 Gunslinging . | . . . Exploded . | . . . Melee . | . . . Uniques/NPCs Destroyed . | . . . Combat | -11 -10 -10 -------- Run | Yrd Mat Min Hostile Shots Fired 140 | . 47 93 Missed 41 | . 14 27 Damage Taken 1452 | . 320 1132 Core 257 | . 7 250 Absorbed by Shields . | . . . Regen/Repaired (Parts) 143 | . 143 . Core Remaining (%) 100 | 100 . . Volleys Fired 129 | 13 86 30 Largest 2 | 2 2 2 Hottest 85 | 70 85 85 Shots Fired 255 | 26 169 60 Gun 255 | 26 169 60 Cannon . | . . . Launcher . | . . . Special . | . . . Kinetic 129 | 13 86 30 Thermal 126 | 13 83 30 Explosive . | . . . Electromagnetic . | . . . Robot Hit Streak 12 | 6 12 9 Robot Miss Streak 4 | 4 4 4 Penetration Max . | . . . Secondary Targets 2 | . 1 1 Max Gunslinging Chain 1 | . 1 1 Shots Hit Robots 151 | 18 99 34 Core Hits 66 | 7 41 18 Critical Kills 1 | . . 1 Critical Parts Destroyed . | . . . Critical Strikes 6 | . 5 1 Burn 5 | . 5 . Destroy 1 | . . 1 Melee Attacks . | . . . Impact . | . . . Slashing . | . . . Piercing . | . . . Sneak Attacks . | . . . Combat Hostiles . | . . . Follow-up Attacks . | . . . Damage Inflicted 2188 | 226 1495 467 Guns 2165 | 226 1476 463 Cannons . | . . . Explosions . | . . . Melee . | . . . Ramming 23 | . 19 4 Kinetic 969 | 126 636 207 Thermal 1196 | 100 840 256 Explosive . | . . . Electromagnetic . | . . . Impact . | . . . Slashing . | . . . Piercing . | . . . Highest Corruption . | . . . Average Corruption . | . . . Corruption Purged . | . . . Corruption Blocked . | . . . Overload Shots . | . . . Overflow Damage . | . . . Projectiles . | . . . Explosions . | . . . Melee . | . . . Knockbacks . | . . . Impact . | . . . Kinetic . | . . . Secondary . | . . . Self-Inflicted Damage . | . . . Shots . | . . . Rammed 7 | . 5 2 Targets Rammed 8 | . 6 2 Kicked . | . . . Crushed 1 | . 1 . Highest Temperature 212 | 38 212 210 Average Temperature 58 | 14 57 73 Received Heat Transfer 156 | . 87 69 Siege Activations . | . . . Robots Corrupted . | . . . Combat Hostiles . | . . . Parts Fried . | . . . Impact Corruptions . | . . . Robots Melted . | . . . Combat Hostiles . | . . . Parts Melted 2 | . 2 . Heat Transferred 3367 | 296 2442 629 Parts Sabotaged . | . . . Parts Stolen . | . . . Parts Stripped . | . . . Power Chain Reactions . | . . . Alert | -11 -10 -10 ------- Run | Yrd Mat Min Peak Influence 314 | 30 314 273 Initial 28 | . 19 28 Average 95 | 17 112 75 Maximum Alert Level 1 | . 1 1 Low Security (%) 91 | 100 95 84 Level 1 8 | . 4 15 Level 2 . | . . . Level 3 . | . . . Level 4 . | . . . Level 5 . | . . . High Security . | . . . Max Security . | . . . Squads Dispatched 4 | . 3 1 Investigation 2 | . 1 1 Extermination . | . . . Reinforcement 2 | . 2 . Assault . | . . . Garrison . | . . . Intercept . | . . . Searches Triggered . | . . . Construction Impeded . | . . . Haulers Reinforced . | . . . Active Scanning Responses . | . . . Cargo Convoy Interrupts . | . . . Stealth | -11 -10 -10 --------- Run | Yrd Mat Min Distress Signals 6 | . 4 2 Communications Jammed . | . . . Distress Signals . | . . . Times Spotted 66 | . 32 34 Peak Tracking Total 21 | . 5 21 Tactical Retreats 5 | . 2 3 Traps | -11 -10 -10 ------- Run | Yrd Mat Min Traps Triggered 1 | . 1 . Indirectly . | . . . Trap Hack Attempts . | . . . Triggered . | . . . Disarmed . | . . . Reprogrammed . | . . . Reused . | . . . Traps Extracted . | . . . Installed . | . . . Triggered . | . . . Machines | -11 -10 -10 ---------- Run | Yrd Mat Min Machines Disabled . | . . . Max in Single Turn . | . . . Machines Repaired . | . . . Machines Dismantled . | . . . Machines Sabotaged . | . . . Overloaded Fab Kills . | . . . Hacking | -11 -10 -10 --------- Run | Yrd Mat Min Machines Accessed 10 | . 9 1 Terminals 6 | . 6 . Fabricators . | . . . Repair Stations 1 | . 1 . Recycling Units 2 | . 2 . Scanalyzers . | . . . Garrison Access . | . . . Total Hacks 29 | . 28 1 Successful 15 | . 14 1 Failed 13 | . 13 . Catastrophic 2 | . 2 . Database Lockouts 1 | . 1 . Manual 17 | . 17 . Terminals 18 | . 18 . Fabricators . | . . . Repair Stations 4 | . 4 . Recycling Units 6 | . 6 . Scanalyzers . | . . . Garrison Access . | . . . Terminal Hacks 6 | . 5 1 Robot Analysis 2 | . 2 . Prototype ID Bank 1 | . 1 . Open Door 1 | . . 1 Locate Traps 1 | . 1 . Hauler Manifests 1 | . 1 . Fabricator Hacks . | . . . Repair Station Hacks 4 | . 4 . Scan Component 2 | . 2 . Repair 2 | . 2 . Recycling Unit Hacks 1 | . 1 . Retrieve Components 1 | . 1 . Scanalyzer . | . . . Garrison Access Hacks . | . . . Unauthorized Hacks 4 | . 4 . Terminals 1 | . 1 . Botnet 1 | . 1 . Fabricators . | . . . Repair Stations . | . . . Recycling Units 3 | . 3 . Reject 1 | . 1 . Recyclers 1 | . 1 . Mask 1 | . 1 . Scanalyzers . | . . . Garrison Access . | . . . Data Cores Recovered . | . . . Used . | . . . Hacking Detections 8 | . 8 . Full Trace Events . | . . . Feedback Events . | . . . Feedback Blocked . | . . . Robot Schematics Acquired . | . . . Robots Built . | . . . Authchips . | . . . Time . | . . . Total Robot Build Rating . | . . . Part Schematics Acquired . | . . . Parts Built . | . . . Authchips . | . . . Time . | . . . Total Part Build Rating . | . . . Parts Repaired 2 | . 2 . Time 52 | . 52 . Parts Recycled . | . . . Recycled Matter . | . . . Retrieved Matter . | . . . Retrieved Components 7 | . 7 . Parts Scanalyzed . | . . . Part Schematics Acquired . | . . . Parts Damaged . | . . . Bothacking | -11 -10 -10 ------------ Run | Yrd Mat Min Used RIF Installer . | . . . Robots Hacked . | . . . Non-combat . | . . . Combat . | . . . Robot Hacks Applied . | . . . Relay Couplers Released . | . . . Fabnet Peak Effective % . | . . . Robots Rewired . | . . . Allies Hacked . | . . . Hacks Repelled . | . . . Allies | -11 -10 -10 -------- Run | Yrd Mat Min Total Allies . | . . . Largest Group . | . . . Highest-Rated Group . | . . . Highest-Rated Ally . | . . . Total Orders . | . . . Ally Attacks . | . . . Total Damage . | . . . Kills . | . . . Allies Corrupted . | . . . Allies Melted . | . . . Intel | -11 -10 -10 ------- Run | Yrd Mat Min Robot Analysis Total 2 | . 2 . Derelict Logs Recovered 1 | . . 1 Drone Launches . | . . . Drone Recoveries . | . . . Exploration | -11 -10 -10 ------------- Run | Yrd Mat Min Turns Passed 3634 | 149 2161 1324 Spaces Moved 1239 | 61 796 382 Core . | . . . Treads 1194 | 30 796 368 Legs 31 | 31 . . Wheels 14 | . . 14 Hover . | . . . Flight . | . . . Fastest Speed 120 | 120 160 160 Average Speed 235 | 139 204 314 Slowest Speed 320 | 160 320 320 Overloaded Moves . | . . . Propulsion Burnouts . | . . . Robots Hopped . | . . . Cave-ins Triggered . | . . . Exploration Rate (%) 63 | 4 98 87 Regions Visited 2 Branch Regions 1 Pre-discovered Areas . | . . . Known Exits Taken . | . . . Unknown Exits Taken 2 | 1 1 . Scrap Searched 2 | . . 2 Spaces Dug . | . . . Terrain Destroyed . | . . . Melee . | . . . Projectile . | . . . AOE . | . . . Terrain Rammed . | . . . Walls Destroyed . | . . . Machines Disabled . | . . . Actions | -11 -10 -10 --------- Run | Yrd Mat Min Total 1707 | 99 1162 446 Wait 254 | 17 231 6 Move 1237 | 60 795 382 Hop . | . . . Pick Up 37 | 4 25 8 Fast Attach 3 | 1 2 . Attach 10 | 2 2 6 Detach 1 | . 1 . Swap 7 | . 4 3 Drop 21 | 2 10 9 Fire 129 | 13 86 30 Melee . | . . . Ram . | . . . Kick . | . . . Crush 8 | . 6 2 Escape Stasis . | . . . Rewire . | . . . Trap . | . . . Miscellaneous . | . . . Route ------- -11/Scrapyard -10/Materials (discovered 5 exits: [*Mat x3] / *Min x2) -10/Mines (discovered 3 exits: [*Mat x2] / [*Exi]) History --------- Turn | Location | Event 10 | -11/Scrapyard | Discovered new exit (range 3) 150 | -11/Scrapyard | Entered Materials 326 | -10/Materials | Build established: Mutant 346 | -10/Materials | Central database locked down 517 | -10/Materials | Discovered new exit (range 11) 614 | -10/Materials | Discovered new exit (range 12) 1003 | -10/Materials | Discovered new exit (range 16) 1099 | -10/Materials | Discovered new exit (range 9) 1325 | -10/Materials | Repaired Lgt. Armor Plating 1352 | -10/Materials | Repaired Lgt. Treads 1737 | -10/Materials | Discovered new exit (range 16) 2311 | -10/Materials | Entered Mines 2703 | -10/Mines | Met a Derelict shopkeep closing up shop 2897 | -10/Mines | Discovered new exit (range 9) 3003 | -10/Mines | Deemed a non-threat by the Exiles lab entrance 3003 | -10/Mines | Discovered new exit (range 5) 3454 | -10/Mines | Discovered new exit (range 10) 3585 | -10/Mines | Assembled infested the area 3620 | -10/Mines | Core integrity fell below 50% 3623 | -10/Mines | Core integrity fell below 20% 3635 | -10/Mines | Destroyed by as-57289 with Assembled Rifle Last Messages --------------- 03605_ as-38133 sneak attacks. 03606_ Assault Rifle destroyed. 03606_ D-53 Grenadier destroyed. 03607_ The unstable cave ceiling collapses. 03613_ as-90856 sneak attacks. 03616_ R-06 Scavenger destroyed. 03621_ Destroyed Asb. Hover Unit. 03621_ as-76479 destroyed. 03622_ Lgt. Ion Engine destroyed. 03624_ R-06 Scavenger collects Aluminum Leg. 03625_ as-28505 sneak attacks. 03625_ R-06 Scavenger destroyed. 03627_ as-60937 destroyed. 03627_ as-90856 sneak attacks. 03627_ U-05 Engineer destroyed. 03632_ Insulated Plating destroyed. 03634_ Lgt. Treads destroyed. 03635_ as-91640 suffers critical hit (Destroy). 03635_ as-91640 destroyed. 03635_ Switching to secondary target: as-14402. Map ----- +----------------------------------------------------+ | ??????????????????????????????????##==[*##???????? | | ???????????????????????????????????# [ #????????? | | ??????????????????????????????????### ########### | | ??????????????????????????????##### X | | ??????????????????????????????# | | ??????????????????????????????# ##### | | ????????????#? ???????? ## #???? | | ???????????? ???????? #####??## ##???? | | ???????????? ?????????????#????### ##????? | | ????????????? ????????????## ????## ##?????? | | ?????????????# ????? #### #???### #??????? | | ???????????### ????? #???# #??????? | | ???????????# #???? #?# ??# #??????? | | ???????????## % ???? #??# ## #??####? | | ??????????## % ????*[% #??# #?## ## | | ??????????# % ##??!%! #??# #### #?# # | | ???????????# ###=!%??# ?????????# #?# # | | ???????????? #%#???????????????# ### | | ????????????? % !#???????????????# ## | | ??????????????# =#???????????????# ## | | ##???????????## #%# #???????????????##### #? | | ##?????????# #????????????????????## #? | | #####?????## % #?????????????????????# #? | | #?????# # #?????????????????????# ## | | ## #?????## ##########????????????# | | ## ######## a@a a #????????????# | | %= ###aaa """a""" #???????########## | | ! """ """a#??????## ##?### | | ########### """=""" #??????# ### | | ##????????### ## =aa a! #??##### | | ############ ## [%a! !""" #??# | | =%! ## =<% """ #### !% | | ################ *== """ % #### | | ##??????????????# ### ##??## | | #???????????????# #?# #????##### | | ##??????????????##############?# #????????##### | | #####???????????????####??????# #????????????? | | #??????????????## ##???# #????????????? | | ###???????????# ### ####?????????? | | #??????????# ##????????? | | # #??????????# ##???????? | | ## ??????????### ##??????? | | ?? ????????????## #????### | | ?? ?????????????# #????# | | ?? ?????????????# ##????# | | ?? ### ?????????????# ##?????## | | ??###??# ?????????????# ######??????## | | ???????# ?????????????## ################## | | ???????# ??????????????# ## ?? | | ???????# #??????????????# ## ?? | +----------------------------------------------------+ Best States ------------- Heat Dissipation 25 Energy Generation 10 Energy Capacity 250 Matter Stores 300 Matter Capacity 300 Sight Range 16 Terrain Scan Range 16 Terrain Scan Density 10 Armor Coverage 150 Resistance: EM 15 Evasion (%) 55 Recoil Reduction 2 Item Schematics ----------------- None Robot Schematics ------------------ None Fabricated ------------ Nothing Alien Tech Used ----------------- None Achievements -------------- None Challenges ------------ None Game ------ Seed SalvageInertialArticulator Manual? 0 Play Time 00:24:37 Cumulative 801.4 hours Start 2024.08.17 @ 15:45:30 End 2024.08.17 @ 16:09:08 Sessions 1 Manual Loads 0 Difficulty Rogue Special Mode None Game No. 529 Rogue 529 Adventurer 0 Explorer 0 Win Type - Total 115 Types 79/7/8/10/5/1/4/0/1 Lore% 72 Gallery% 81 Achievement% 82 Wizard Run 0 Options --------- Layout 1 ASCII 0 Keyboard 0 Movement Numpad Keybinds 0 Fullscreen 1 Font 24/Terminus Map View 50x35 Zoom Use 0% Tactical HUD 1 Map Filters NONE Filters NONE Steam 1 RUN: ff1e51ba-0c5a-4b13-99aa-f22bf9917b98